bitfinex-derivatives/quotes_BTCF0:USTF0_20240815
["timestamp","ask_amount","ask_price","bid_price","bid_amount"]
[1723764983481,0.09928487,57768.0,57767.0,0.061573]
[1723764987696,0.09928492,57768.0,57767.0,0.061573]
[1723764992187,0.20273248,57768.0,57767.0,0.061573]
[1723764992383,0.20273261,57768.0,57767.0,0.061573]
[1723764993389,0.060574,57766.0,57764.0,0.001]
[1723764993585,0.49264567,57765.0,57762.0,0.060578]
[1723764993776,0.02804243,57764.0,57762.0,0.060578]
[1723764993975,0.02804243,57763.0,57762.0,0.060578]
[1723764994172,0.20794243,57763.0,57762.0,0.060578]
[1723764994680,0.20794243,57763.0,57760.0,0.00848785]
[1723764994877,0.02804243,57762.0,57759.0,4.13201982]
[1723764995079,0.08649212,57760.0,57759.0,4.13105982]
[1723764995279,0.21649212,57760.0,57759.0,4.13105982]
[1723764995481,0.5188444,57760.0,57759.0,3.77025982]
[1723764995783,0.1580444,57760.0,57759.0,0.00889088]
[1723764996386,0.1580444,57760.0,57759.0,0.00125982]
[1723764996596,0.1580444,57760.0,57759.0,0.00325982]
[1723764996978,0.15804629,57760.0,57759.0,0.00325982]
[1723764997183,0.15804543,57760.0,57759.0,0.06384082]
[1723764997389,0.21646524,57760.0,57759.0,0.06384082]
[1723764997704,0.13,57760.0,57759.0,0.06384082]
[1723764998486,0.13,57760.0,57759.0,0.42464082]
[1723764998691,0.19915886,57760.0,57759.0,0.42464082]
[1723764998893,0.13,57760.0,57759.0,0.52144082]
[1723764999096,0.13,57760.0,57759.0,0.58903617]
[1723764999794,0.13,57760.0,57759.0,0.52044082]
[1723765000693,0.13,57760.0,57759.0,0.58903617]
[1723765001781,0.129,57760.0,57759.0,1.69801542]
[1723765001981,0.06915886,57769.0,57763.0,0.060577]
[1723765002189,0.11,57769.0,57768.0,0.6001]
[1723765002389,0.00025982,57770.0,57769.0,0.060571]
[1723765002580,0.11025982,57770.0,57769.0,0.7803204]
[1723765003493,0.0212559,57770.0,57769.0,0.84894822]
[1723765003692,0.0212559,57770.0,57769.0,0.6721458]
[1723765004985,0.0242559,57770.0,57769.0,0.6721458]
[1723765005180,0.0242559,57770.0,57769.0,0.78029112]
[1723765005382,0.06915886,57781.0,57780.0,0.060559]
[1723765005595,0.06915886,57785.0,57784.0,0.060555]
[1723765005788,0.13,57785.0,57780.0,0.782158]
[1723765005990,0.06915886,57784.0,57780.0,0.782158]
[1723765006190,0.22775886,57784.0,57781.0,3.830558]
[1723765006386,0.1586,57784.0,57781.0,3.830558]
[1723765007705,0.1616,57784.0,57781.0,3.831558]
[1723765008198,0.060557,57782.0,57781.0,0.001]
[1723765008496,0.23971586,57782.0,57781.0,0.001]
[1723765008702,0.28505997,57782.0,57781.0,0.00029925]
[1723765008888,0.19859473,57782.0,57781.0,0.00029925]
[1723765009090,0.71779473,57782.0,57781.0,0.00029925]
[1723765009290,0.060561,57778.0,57777.0,0.00025959]
[1723765009499,0.060561,57778.0,57762.0,0.421378]
[1723765009500,0.83390324,57778.0,57762.0,0.421378]
[1723765009801,0.06896214,57769.0,57762.0,0.421378]
[1723765010000,0.0939,57768.0,57762.0,0.421378]
[1723765010213,0.2039,57768.0,57763.0,0.060577]
[1723765012091,0.2049,57768.0,57763.0,0.060577]
[1723765012697,0.111,57768.0,57762.0,0.61969029]
[1723765013002,0.111,57768.0,57767.0,0.6001]
[1723765013003,0.001,57768.0,57767.0,0.6001]
[1723765013205,0.001,57768.0,57767.0,0.3608]
[1723765013388,0.001,57768.0,57763.0,0.071576]
[1723765013704,0.00025884,57771.0,57764.0,0.060576]
[1723765013888,0.00025884,57771.0,57765.0,0.060575]
[1723765013889,0.13025884,57771.0,57765.0,0.060575]
[1723765014203,0.13025884,57771.0,57766.0,0.060573]
[1723765015102,0.001,57768.0,57766.0,0.060573]
[1723765015488,0.002,57768.0,57766.0,0.060573]
[1723765015689,0.001,57768.0,57767.0,0.060573]
[1723765016097,0.11,57768.0,57767.0,0.060573]
[1723765016400,0.112,57768.0,57767.0,0.060573]
[1723765016900,0.111,57768.0,57767.0,0.060573]
[1723765017107,0.00074041,57768.0,57767.0,1.75667176]
[1723765017600,0.00074041,57768.0,57767.0,5.12667176]
[1723765018097,0.00074041,57768.0,57767.0,5.52667176]
[1723765018600,0.00074041,57768.0,57767.0,5.12667176]
[1723765020094,0.00074041,57768.0,57767.0,4.598673]
[1723765020296,0.11074041,57768.0,57767.0,4.4107056]
[1723765020497,0.11074041,57768.0,57767.0,4.199373]
[1723765022710,0.11074041,57768.0,57767.0,4.438673]
[1723765023399,0.11074041,57768.0,57767.0,4.199373]
[1723765023706,0.11074041,57768.0,57767.0,0.429373]
[1723765024608,0.16024041,57768.0,57767.0,0.429373]
[1723765024905,0.16024041,57768.0,57767.0,0.3688]
[1723765025292,0.16024041,57768.0,57767.0,0.008]
[1723765026507,0.060595,57746.0,57736.0,0.08571342]
[1723765026822,0.060595,57746.0,57735.0,0.3608]
[1723765026823,0.06901419,57743.0,57735.0,0.41225512]
[1723765027109,0.12,57743.0,57737.0,3.830604]
[1723765027298,0.12,57743.0,57737.0,3.77]
[1723765027501,0.0001744,57742.0,57737.0,3.77]
[1723765028209,0.3608,57741.0,57737.0,3.77]
[1723765028409,0.2393,57739.0,57736.0,0.011]
[1723765028708,0.2393,57739.0,57734.0,0.00025959]
[1723765028709,0.060606,57735.0,57734.0,0.00025959]
[1723765028910,0.170606,57735.0,57734.0,0.00025959]
[1723765029096,0.29991,57731.0,57730.0,0.3608]
[1723765029305,0.060612,57730.0,57723.0,0.00840632]
[1723765029507,0.3608,57729.0,57717.0,3.77]
[1723765029707,0.5306,57729.0,57721.0,0.00869386]
[1723765029907,0.5306,57729.0,57721.0,0.00019868]
[1723765030105,0.639713,57729.0,57721.0,0.00019868]
[1723765031307,0.639713,57729.0,57723.0,0.01]
[1723765031807,0.640713,57729.0,57723.0,0.01]
[1723765032109,0.640713,57729.0,57721.0,0.01219868]
[1723765032318,0.640713,57729.0,57721.0,0.01019868]
[1723765032505,0.641713,57729.0,57723.0,0.002]
[1723765033511,0.641713,57729.0,57721.0,0.37299868]
[1723765034013,0.641713,57729.0,57723.0,0.01]
[1723765034404,0.55358391,57729.0,57723.0,0.01]
[1723765034810,0.55258391,57729.0,57721.0,0.36299868]
[1723765035007,0.55358391,57729.0,57721.0,0.37299868]
[1723765035209,0.55358391,57729.0,57723.0,0.002]
[1723765035713,0.55358391,57729.0,57723.0,0.012]
[1723765038418,0.122,57729.0,57723.0,0.012]
[1723765038625,0.122,57729.0,57728.0,0.060614]
[1723765038830,0.00776829,57729.0,57728.0,0.969594]
[1723765039024,0.00776829,57729.0,57728.0,1.369594]
[1723765039225,0.00776829,57729.0,57728.0,5.186994]
[1723765039226,0.002,57729.0,57728.0,5.186994]
[1723765039532,0.002,57729.0,57728.0,4.786994]
[1723765039729,0.002,57729.0,57728.0,5.186994]
[1723765039923,0.001,57729.0,57728.0,5.188994]
[1723765040528,0.00025982,57731.0,57730.0,0.060612]
[1723765040835,0.00025982,57731.0,57730.0,0.220612]
[1723765041032,0.00025982,57731.0,57730.0,1.101052]
[1723765041438,0.00025982,57731.0,57730.0,4.871052]
[1723765042033,0.00025982,57731.0,57730.0,4.872052]
[1723765042936,0.00025982,57731.0,57730.0,4.871052]
[1723765043239,0.00125982,57731.0,57730.0,4.875052]
[1723765043741,0.00125982,57731.0,57730.0,4.355412]
[1723765044339,0.11125982,57731.0,57730.0,0.3628]
[1723765044528,0.87119982,57731.0,57730.0,0.012]
[1723765044841,0.41216982,57731.0,57730.0,0.012]
[1723765045337,0.11225982,57731.0,57730.0,0.012]
[1723765045733,0.11125982,57731.0,57730.0,0.01]
[1723765046040,0.11225982,57731.0,57730.0,0.012]
[1723765046436,0.11125982,57731.0,57730.0,0.011]
[1723765047226,0.11025982,57731.0,57730.0,0.003]
[1723765049236,0.41016982,57731.0,57730.0,0.003]
[1723765050334,1.32980982,57731.0,57730.0,0.003]
[1723765052049,0.41016982,57731.0,57730.0,0.003]
[1723765052435,0.41016982,57731.0,57721.0,0.00019868]
[1723765052436,0.06062,57722.0,57721.0,0.00019868]
[1723765052746,0.4708,57722.0,57713.0,0.060629]
[1723765052945,0.060622,57720.0,57714.0,3.830627]
[1723765053153,0.190622,57720.0,57714.0,3.830627]
[1723765053553,0.19083303,57720.0,57717.0,0.00692811]
[1723765054239,0.19083303,57720.0,57714.0,3.830627]
[1723765054448,0.19083303,57720.0,57719.0,0.01025982]
[1723765054644,0.19183303,57720.0,57719.0,0.01025982]
[1723765055452,0.24441784,57720.0,57719.0,0.01125982]
[1723765055647,0.19283303,57720.0,57719.0,0.01125982]
[1723765056248,0.26184722,57720.0,57719.0,0.01125982]
[1723765056648,1.25301103,57720.0,57705.0,0.05148744]
[1723765056857,0.2393,57705.0,57697.0,0.0001973]
[1723765057155,0.2393,57698.0,57697.0,0.0001973]
[1723765057352,0.3593,57698.0,57697.0,0.0001973]
[1723765058254,0.06065,57693.0,57692.0,0.36105982]
[1723765058553,0.19065,57693.0,57692.0,0.36105982]
[1723765059151,0.24233028,57693.0,57692.0,0.36105982]
[1723765059541,0.24233028,57693.0,57675.0,0.29401107]
[1723765059542,1.47245,57693.0,57675.0,0.29401107]
[1723765059851,0.05168889,57682.0,57675.0,0.24248]
[1723765060053,0.00019402,57681.0,57675.0,0.24248]
[1723765060253,0.12019402,57681.0,57675.0,0.24248]
[1723765060550,0.12019402,57681.0,57678.0,0.3608]
[1723765061355,0.12119402,57681.0,57678.0,0.3608]
[1723765062352,0.12219402,57681.0,57679.0,0.3608]
[1723765063256,0.12219402,57681.0,57680.0,3.77]
[1723765063453,0.12219402,57681.0,57680.0,3.830664]
[1723765063656,0.002,57681.0,57680.0,4.920784]
[1723765063956,0.00026006,57684.0,57683.0,0.060661]
[1723765064155,0.00026006,57684.0,57683.0,0.660761]
[1723765064462,0.00026006,57684.0,57683.0,1.580841]
[1723765064758,0.00046097,57684.0,57683.0,5.350841]
[1723765064945,0.00046097,57684.0,57683.0,5.78236467]
[1723765065151,0.26081951,57708.0,57683.0,5.72170367]
[1723765065356,0.30109632,57708.0,57699.0,0.3608]
[1723765065557,0.13,57708.0,57699.0,0.3608]
[1723765066261,0.00016298,57707.0,57699.0,0.3608]
[1723765066449,0.36946298,57707.0,57699.0,0.3608]
[1723765066853,0.13016298,57707.0,57699.0,0.3618]
[1723765067557,0.13016298,57707.0,57700.0,0.060642]
[1723765068153,0.13116298,57707.0,57700.0,0.060642]
[1723765068561,0.13216298,57707.0,57700.0,0.060642]
[1723765069060,0.13216298,57707.0,57700.0,0.061642]
[1723765069365,0.37146298,57707.0,57700.0,0.001]
[1723765069559,0.060638,57705.0,57700.0,0.001]
[1723765069752,0.11,57705.0,57700.0,0.001]
[1723765070261,0.11,57705.0,57699.0,0.3608]
[1723765070558,0.11,57705.0,57700.0,0.001]
[1723765070559,0.060641,57702.0,57700.0,0.001]
[1723765070762,0.170641,57702.0,57700.0,0.001]
[1723765071750,0.060642,57701.0,57700.0,0.001]
[1723765071952,0.180642,57701.0,57699.0,0.3608]
[1723765072153,0.180642,57701.0,57700.0,0.001]
[1723765072355,0.419942,57701.0,57700.0,0.001]
[1723765072554,0.060643,57700.0,57699.0,0.3608]
[1723765072749,0.170643,57700.0,57699.0,0.3608]
[1723765073151,0.170643,57700.0,57698.0,0.00026006]
[1723765073457,0.060644,57699.0,57698.0,0.00026006]
[1723765073652,0.180644,57699.0,57698.0,0.00026006]
[1723765074354,0.060658,57686.0,57685.0,0.3608]
[1723765074558,0.18083345,57686.0,57685.0,0.3608]
[1723765075957,0.12117545,57686.0,57685.0,0.3618]
[1723765084371,0.17273215,57686.0,57685.0,0.001]
[1723765084867,0.53353215,57686.0,57685.0,0.001]
[1723765085167,0.55071772,57686.0,57685.0,0.001]
[1723765085362,0.12117545,57686.0,57685.0,0.001]
[1723765085869,0.42921772,57686.0,57680.0,0.00026006]
[1723765086165,0.060663,57681.0,57680.0,0.00026006]
[1723765086367,0.170663,57681.0,57680.0,0.00026006]
[1723765087956,0.171663,57681.0,57680.0,0.00026006]
[1723765088564,0.172663,57681.0,57680.0,0.00026006]
[1723765089357,0.22443899,57681.0,57680.0,0.00026006]
[1723765089556,0.172663,57681.0,57680.0,0.00026006]
[1723765091056,0.24140527,57681.0,57680.0,0.00026006]
[1723765091360,0.241695,57681.0,57680.0,0.00026006]
[1723765091961,0.111,57681.0,57680.0,0.06092406]
[1723765092166,0.111,57681.0,57680.0,0.06192406]
[1723765092467,0.111,57681.0,57680.0,4.19272406]
[1723765092662,0.114,57681.0,57680.0,4.19172406]
[1723765092870,0.114,57681.0,57680.0,4.19372406]
[1723765093559,0.02521161,57681.0,57680.0,4.19372406]
[1723765094170,0.02521161,57681.0,57680.0,4.86384406]
[1723765094472,0.02295155,57681.0,57680.0,4.86384406]
[1723765094773,0.02195155,57681.0,57680.0,4.86884406]
[1723765095261,0.02095155,57681.0,57680.0,4.86384406]
[1723765095468,0.02195155,57681.0,57680.0,5.26884406]
[1723765096268,0.02195155,57681.0,57680.0,4.86884406]
[1723765096658,0.02095155,57681.0,57680.0,5.26684406]
[1723765096859,0.02195155,57681.0,57680.0,5.26884406]
[1723765097469,0.02195155,57681.0,57680.0,4.19872406]
[1723765097973,0.02195155,57681.0,57680.0,4.36872406]
[1723765098662,0.02195155,57681.0,57680.0,4.36372406]
[1723765098857,0.02195155,57681.0,57680.0,4.36872406]
[1723765099767,0.02095155,57681.0,57680.0,4.36672406]
[1723765099956,0.02195155,57681.0,57680.0,4.36872406]
[1723765101574,0.02195155,57681.0,57680.0,4.42025513]
[1723765102077,0.02195155,57681.0,57680.0,4.05945513]
[1723765102274,0.02195155,57681.0,57680.0,4.36872406]
[1723765103866,0.02095155,57681.0,57680.0,4.00592406]
[1723765104071,0.02195155,57681.0,57680.0,4.36872406]
[1723765104268,0.07371922,57681.0,57680.0,4.43732277]
[1723765104669,0.02195155,57681.0,57680.0,4.43732277]
[1723765105073,0.02195155,57681.0,57680.0,4.36872406]
[1723765105977,0.02195155,57681.0,57680.0,4.43732277]
[1723765106165,0.02195155,57681.0,57680.0,4.36872406]
[1723765106573,0.02195155,57681.0,57680.0,4.43732277]
[1723765106774,0.07385137,57681.0,57680.0,4.36872406]
[1723765108673,0.002,57681.0,57680.0,5.75795974]
[1723765108867,0.00017545,57686.0,57685.0,0.060659]
[1723765109067,0.00017545,57686.0,57685.0,0.591459]
[1723765109274,0.00017545,57686.0,57685.0,1.70588663]
[1723765109582,0.00017545,57686.0,57685.0,1.68536696]
[1723765109980,0.00117545,57686.0,57685.0,1.77336321]
[1723765110278,0.00117545,57686.0,57685.0,1.62185468]
[1723765111273,0.00117545,57686.0,57685.0,0.70177468]
[1723765111468,0.00117545,57686.0,57685.0,0.77054935]
[1723765111681,0.00217545,57686.0,57685.0,1.22685468]
[1723765111867,0.00217545,57686.0,57685.0,1.62685468]
[1723765113784,0.00217545,57686.0,57685.0,1.63233588]
[1723765114176,0.00026006,57691.0,57690.0,0.060654]
[1723765114480,0.05189982,57698.0,57697.0,0.060646]
[1723765114683,0.08,57698.0,57697.0,4.1308]
[1723765115783,0.08,57698.0,57697.0,4.192446]
[1723765115784,0.089,57698.0,57697.0,4.192446]
[1723765116082,0.009,57698.0,57697.0,4.192446]
[1723765116284,0.018,57698.0,57697.0,4.192446]
[1723765116584,0.00026006,57703.0,57702.0,0.060641]
[1723765116784,0.05189982,57714.0,57713.0,0.060629]
[1723765116979,0.05189982,57714.0,57713.0,0.421429]
[1723765117174,0.0479,57717.0,57713.0,0.7216]
[1723765118180,0.0479,57717.0,57716.0,0.060626]
[1723765118997,0.1899,57717.0,57716.0,0.060626]
[1723765119490,1.1097,57717.0,57709.0,0.00026006]
[1723765119679,0.299933,57710.0,57709.0,0.00026006]
[1723765119887,0.3493,57710.0,57703.0,0.3608]
[1723765120089,0.0464,57709.0,57703.0,0.3608]
[1723765120289,0.1564,57709.0,57703.0,0.3608]
[1723765120693,0.060637,57706.0,57703.0,0.3608]
[1723765120990,0.0457,57705.0,57703.0,0.36615631]
[1723765121191,0.1757,57705.0,57703.0,0.36615631]
[1723765121982,0.1757,57705.0,57704.0,0.060639]
[1723765122284,0.1757,57705.0,57703.0,0.36715631]
[1723765122285,0.006,57706.0,57705.0,0.060638]
[1723765122493,0.016,57706.0,57705.0,0.060638]
[1723765122682,0.01,57706.0,57705.0,0.060638]
[1723765124895,0.018,57706.0,57705.0,0.061638]
[1723765125103,0.016,57706.0,57705.0,0.202638]
[1723765125393,0.02234618,57709.0,57708.0,0.060635]
[1723765125692,0.02234618,57709.0,57708.0,4.191435]
[1723765126684,0.03334618,57709.0,57708.0,4.192435]
[1723765128294,1.79078618,57709.0,57691.0,0.3608]
[1723765128495,0.3608,57704.0,57691.0,0.3608]
[1723765128695,0.4908,57704.0,57691.0,0.3608]
[1723765128896,0.4908,57704.0,57698.0,0.00531051]
[1723765129093,0.13,57704.0,57698.0,0.00531051]
[1723765131392,0.13,57704.0,57691.0,0.3608]
[1723765131393,0.0463,57703.0,57691.0,0.3608]
[1723765131597,0.060643,57701.0,57696.0,0.00552475]
[1723765131797,0.190643,57701.0,57696.0,0.00552475]
[1723765132505,1.189052,57700.0,57681.0,0.05145237]
[1723765132698,0.3608,57692.0,57680.0,0.24256]
[1723765133008,0.05171768,57691.0,57684.0,0.36628462]
[1723765133299,0.16171768,57691.0,57684.0,0.36628462]
[1723765134403,0.3608,57686.0,57682.0,0.00026006]
[1723765134603,0.060661,57683.0,57682.0,0.00026006]
[1723765134809,0.180661,57683.0,57682.0,0.00026006]
[1723765135706,0.180661,57683.0,57682.0,0.00926006]
[1723765136102,0.12,57683.0,57682.0,0.00026006]
[1723765136308,0.12,57683.0,57682.0,0.01726006]
[1723765136309,0.122,57683.0,57682.0,0.01726006]
[1723765137803,0.182661,57683.0,57682.0,0.01726006]
[1723765139124,1.3503369,57683.0,57669.0,0.00018835]
[1723765139402,0.3608,57673.0,57669.0,0.00018835]
[1723765139605,0.05171061,57672.0,57669.0,0.00018835]
[1723765139800,0.17171061,57672.0,57669.0,0.00018835]
[1723765140109,0.12,57672.0,57669.0,0.00018835]
[1723765140904,0.12,57672.0,57669.0,0.01018835]
[1723765141505,0.12,57672.0,57669.0,0.01118835]
[1723765141698,0.121,57672.0,57669.0,0.01918835]
[1723765142194,0.122,57672.0,57669.0,0.01418835]
[1723765142395,0.121,57672.0,57669.0,0.01018835]
[1723765144400,0.122,57672.0,57669.0,0.01118835]
[1723765144806,0.002,57672.0,57671.0,0.3608]
[1723765145004,0.002,57672.0,57670.0,0.0959]
[1723765145005,0.4918,57672.0,57669.0,0.01018835]
[1723765145206,0.4918,57672.0,57669.0,0.00518835]
[1723765145207,0.299975,57670.0,57669.0,0.00518835]
[1723765145506,0.429975,57670.0,57669.0,0.01118835]
[1723765146404,0.190675,57670.0,57669.0,0.01118835]
[1723765147000,0.190675,57670.0,57669.0,0.00318835]
[1723765147402,0.190675,57670.0,57669.0,0.00618835]
[1723765148501,0.190675,57670.0,57669.0,0.00918835]
[1723765149202,0.551475,57670.0,57669.0,0.00918835]
[1723765151102,0.4908,57670.0,57669.0,0.00918835]
[1723765151416,0.13,57670.0,57669.0,0.06986435]
[1723765152002,0.13,57670.0,57669.0,3.83986435]
[1723765152204,0.13,57670.0,57669.0,3.99986435]
[1723765152408,0.13,57670.0,57669.0,3.83986435]
[1723765153513,0.04104493,57670.0,57669.0,3.98986435]
[1723765154916,0.04104493,57670.0,57669.0,3.83986435]
[1723765159217,0.04104493,57670.0,57669.0,3.98986435]
[1723765160223,0.00026006,57676.0,57670.0,0.060674]
[1723765160415,0.12026006,57676.0,57671.0,0.3608]
[1723765160724,0.12026006,57676.0,57671.0,0.5308]
[1723765161725,0.12026006,57676.0,57671.0,0.591474]
[1723765162115,0.12026006,57676.0,57671.0,0.5308]
[1723765162316,0.05171061,57681.0,57674.0,0.3608]
[1723765162512,0.05171061,57684.0,57681.0,0.3608]
[1723765162721,0.11,57684.0,57682.0,0.0972]
[1723765163024,0.16171061,57684.0,57682.0,0.0972]
[1723765163923,0.16171061,57684.0,57682.0,0.0982]
[1723765164224,0.05171061,57683.0,57682.0,0.0982]
[1723765164423,0.13,57683.0,57682.0,0.0982]
[1723765165124,0.13,57683.0,57682.0,0.051]
[1723765165424,0.18182957,57683.0,57682.0,0.051]
[1723765165918,0.19182957,57683.0,57682.0,0.052]
[1723765166524,0.19182904,57683.0,57682.0,0.052]
[1723765166722,0.19182904,57683.0,57682.0,0.051]
[1723765166920,0.19182904,57683.0,57682.0,0.002]
[1723765166921,0.15,57683.0,57682.0,0.002]
[1723765167113,1.223541,57683.0,57682.0,0.002]
[1723765167720,1.25162653,57683.0,57682.0,0.002]
[1723765170224,1.25697759,57683.0,57682.0,0.002]
[1723765171325,1.36052214,57683.0,57682.0,0.000596]
[1723765171925,1.25697759,57683.0,57682.0,0.000596]
[1723765172315,1.36052214,57683.0,57682.0,0.000596]
[1723765173018,1.25697759,57683.0,57682.0,0.000596]
[1723765173223,0.29149759,57683.0,57682.0,0.000596]
[1723765173621,0.26341114,57683.0,57682.0,0.000596]
[1723765173927,0.210661,57683.0,57682.0,0.000596]
[1723765174833,0.29707782,57683.0,57682.0,0.000596]
[1723765175123,0.2387469,57683.0,57682.0,0.000596]
[1723765175522,0.23874718,57683.0,57682.0,0.000596]
[1723765177826,0.15,57683.0,57682.0,0.061258]
[1723765178131,0.15,57683.0,57682.0,0.000596]
[1723765178132,0.210661,57683.0,57682.0,0.000596]
[1723765178428,0.23874662,57683.0,57682.0,0.000596]
[1723765180924,0.210661,57683.0,57682.0,0.000596]
[1723765181728,0.23874596,57683.0,57682.0,0.000596]
[1723765182236,0.29715428,57683.0,57682.0,0.000596]
[1723765182726,0.23874733,57683.0,57682.0,0.000596]
[1723765182929,0.23874467,57683.0,57682.0,0.000596]
[1723765183535,0.23874649,57683.0,57682.0,0.000596]
[1723765185329,0.15013871,57683.0,57682.0,0.000596]
[1723765185729,0.06139222,57683.0,57682.0,0.000596]
[1723765185934,0.14789215,57683.0,57682.0,0.000596]
[1723765186134,0.06139222,57683.0,57682.0,0.000596]
[1723765186336,0.06139222,57683.0,57682.0,0.061258]
[1723765186520,0.06139222,57683.0,57682.0,0.211258]
[1723765186921,0.13058657,57683.0,57682.0,0.211258]
[1723765187125,0.06139222,57683.0,57682.0,0.211258]
[1723765187522,0.11328237,57683.0,57682.0,0.211258]
[1723765187836,0.11328237,57683.0,57682.0,0.21709092]
[1723765187837,0.02,57683.0,57682.0,0.21709092]
[1723765188037,0.02,57683.0,57682.0,0.06709092]
[1723765188836,0.02,57683.0,57682.0,0.20709092]
[1723765189337,0.02,57683.0,57682.0,0.25877914]
[1723765189735,0.07188797,57683.0,57682.0,0.25877914]
[1723765189933,0.07188797,57683.0,57682.0,0.20709092]
[1723765190136,0.02,57683.0,57682.0,0.05228927]
[1723765190327,1.03088,57683.0,57682.0,0.000596]
[1723765190534,0.59954511,57683.0,57682.0,0.000596]
[1723765191238,0.59954528,57683.0,57682.0,0.000596]
[1723765191542,0.65792879,57683.0,57682.0,0.000596]
[1723765191725,0.65792898,57683.0,57682.0,0.000596]
[1723765192540,0.65793087,57683.0,57682.0,0.000596]
[1723765193440,0.59954494,57683.0,57682.0,0.000596]
[1723765195034,0.571461,57683.0,57682.0,0.000596]
[1723765195834,0.65795469,57683.0,57682.0,0.000596]
[1723765196041,0.29715205,57683.0,57682.0,0.000596]
[1723765197539,0.23874478,57683.0,57682.0,0.000596]
[1723765198940,0.23874525,57683.0,57682.0,0.000596]
[1723765199142,0.23874555,57683.0,57682.0,0.000596]
[1723765199843,0.210661,57683.0,57682.0,0.000596]
[1723765200347,0.23874493,57683.0,57682.0,0.000596]
[1723765200738,0.210661,57683.0,57682.0,0.000596]
[1723765202245,0.15,57683.0,57682.0,1.1930678]
[1723765202548,0.15,57683.0,57682.0,1.141338]
[1723765202745,0.01077544,57683.0,57682.0,1.67679725]
[1723765202945,0.01077544,57683.0,57682.0,1.72339725]
[1723765203149,0.01077544,57683.0,57682.0,1.80955727]
[1723765203448,0.01077544,57683.0,57682.0,1.65705263]
[1723765203834,0.01077544,57683.0,57682.0,1.25705263]
[1723765204045,0.14077544,57683.0,57682.0,0.468658]
[1723765204349,0.14077544,57683.0,57682.0,0.45970196]
[1723765204550,0.14077544,57683.0,57682.0,0.407996]
[1723765207146,0.14077544,57683.0,57682.0,0.047196]
[1723765207349,0.14077544,57683.0,57682.0,0.000596]
[1723765208245,0.20143644,57683.0,57682.0,0.000596]
[1723765209447,0.28795161,57683.0,57682.0,0.000596]
[1723765209759,0.20143644,57683.0,57682.0,0.000596]
[1723765209951,0.14077544,57683.0,57682.0,0.000596]
[1723765211154,0.14077544,57683.0,57677.0,0.06675032]
[1723765211155,0.6889384,57683.0,57677.0,0.00026006]
[1723765211350,0.3608,57678.0,57677.0,0.00026006]
[1723765211549,0.4808,57678.0,57677.0,0.00026006]
[1723765212251,0.50888774,57678.0,57677.0,0.00026006]
[1723765212451,0.62315374,57678.0,57677.0,0.00026006]
[1723765214057,0.6865105,57678.0,57677.0,0.00026006]
[1723765214361,0.6369105,57678.0,57677.0,0.00026006]
[1723765214756,0.57624194,57678.0,57677.0,0.00026006]
[1723765214948,0.4898,57678.0,57677.0,0.00026006]
[1723765215756,0.08643257,57680.0,57677.0,0.00026006]
[1723765216059,0.13,57680.0,57677.0,0.00026006]
[1723765216262,0.13,57680.0,57678.0,0.060666]
[1723765216458,0.13,57680.0,57679.0,0.0497]
[1723765216848,0.13,57680.0,57679.0,0.4105]
[1723765217259,0.13,57680.0,57679.0,0.3608]
[1723765217562,0.134,57680.0,57677.0,0.00026006]
[1723765217857,0.20314606,57680.0,57679.0,0.3608]
[1723765218064,0.20314606,57680.0,57679.0,0.61317096]
[1723765218065,0.134,57680.0,57679.0,0.61317096]
[1723765218257,0.12940401,57680.0,57679.0,1.53329096]
[1723765218561,0.007,57680.0,57679.0,5.36090711]
[1723765218762,0.01,57680.0,57679.0,5.42983722]
[1723765219060,0.01,57680.0,57679.0,5.36090711]
[1723765219262,0.008,57680.0,57679.0,4.852585]
[1723765219456,0.008,57680.0,57679.0,5.252585]
[1723765219653,0.008,57680.0,57679.0,4.852585]
[1723765219855,0.008,57680.0,57679.0,5.32151511]
[1723765220059,0.008,57680.0,57679.0,4.192465]
[1723765220262,0.008,57680.0,57679.0,4.19842963]
[1723765221956,0.008,57680.0,57679.0,4.26735974]
[1723765222155,0.008,57680.0,57679.0,4.19842963]
[1723765224954,0.138,57680.0,57679.0,4.19842963]
[1723765225968,0.138,57680.0,57679.0,4.35842963]
[1723765229674,0.138,57680.0,57679.0,0.00696463]
[1723765229861,0.198664,57680.0,57679.0,0.001]
[1723765230566,0.198664,57680.0,57679.0,0.3618]
[1723765231263,0.138,57680.0,57679.0,0.3618]
[1723765231465,0.18983796,57680.0,57679.0,0.3618]
[1723765231659,0.138,57680.0,57679.0,0.3618]
[1723765232059,0.138,57680.0,57679.0,0.7226]
[1723765232971,0.138,57680.0,57679.0,0.8726]
[1723765233270,0.18983684,57680.0,57679.0,0.8726]
[1723765233467,0.138,57680.0,57679.0,0.98489643]
[1723765233765,0.18983684,57680.0,57679.0,0.98489643]
[1723765234657,0.138,57680.0,57679.0,0.98489643]
[1723765234863,0.138,57680.0,57679.0,0.98490024]
[1723765235665,0.138,57680.0,57679.0,0.933265]
[1723765237665,0.138,57680.0,57679.0,0.98493559]
[1723765238065,0.138,57680.0,57679.0,0.98493585]
[1723765238274,0.138,57680.0,57679.0,0.933265]
[1723765238477,0.138,57680.0,57679.0,0.98493708]
[1723765238866,0.138,57680.0,57679.0,0.933265]
[1723765239368,0.138,57680.0,57679.0,0.98493626]
[1723765239569,0.138,57680.0,57679.0,0.98493688]
[1723765239771,0.18985469,57680.0,57679.0,0.933265]
[1723765239977,0.138,57680.0,57679.0,0.98493679]
[1723765240575,0.138,57680.0,57679.0,0.933265]
[1723765240782,0.1898549,57680.0,57679.0,0.933265]
[1723765240972,0.138,57680.0,57679.0,0.933265]
[1723765241378,0.18985578,57680.0,57679.0,0.933265]
[1723765241580,0.138,57680.0,57679.0,0.933265]
[1723765242092,0.138,57680.0,57679.0,4.703265]
[1723765244479,0.138,57680.0,57679.0,4.342465]
[1723765245689,0.13911975,57693.0,57679.0,4.2818]
[1723765245888,0.060654,57690.0,57682.0,0.05173084]